bitfinex-derivatives/quotes_ETHF0:USTF0_20251225
["timestamp","ask_amount","ask_price","bid_price","bid_amount"]
[1766677147845,0.00357819,2952.2,2950.7,0.16955]
[1766677148439,0.00357819,2952.2,2951.0,0.16953]
[1766677148640,0.00357819,2952.2,2951.1,18.051]
[1766677148840,0.00357819,2952.2,2951.0,0.16953]
[1766677149049,0.00357819,2952.2,2951.1,18.05]
[1766677149250,0.00357819,2952.2,2951.2,6.183]
[1766677149448,0.00357819,2952.2,2951.2,9.573]
[1766677150154,3.53396291,2954.3,2950.9,0.94660766]
[1766677150350,15.83060766,2953.5,2951.5,0.94660766]
[1766677150649,0.94660766,2953.2,2952.2,0.0050838]
[1766677150851,3.39,2953.1,2952.2,0.0050838]
[1766677151251,3.39429002,2953.1,2952.2,0.0050838]
[1766677153555,3.39429002,2953.1,2951.9,3.39]
[1766677153746,3.39429002,2953.1,2950.7,33.9]
[1766677153948,40.8,2953.0,2950.8,11.865]
[1766677154148,40.8,2953.0,2950.8,8.474]
[1766677154349,40.8,2953.0,2950.9,9.571]
[1766677154545,0.00505446,2952.2,2950.9,9.571]
[1766677154750,3.39405446,2952.2,2951.0,9.571]
[1766677155051,3.39405446,2952.2,2951.1,3.389]
[1766677155648,3.39405446,2952.2,2951.4,0.0050838]
[1766677158144,3.39405446,2952.2,2951.4,3.3940838]
[1766677158946,3.39405446,2952.2,2950.6,0.00274657]
[1766677159348,3.39405446,2952.2,2950.7,3.389]
[1766677159547,4.60145308,2952.2,2950.7,3.389]
[1766677160057,40.8,2952.1,2951.2,0.0050838]
[1766677160258,6.274,2952.0,2951.2,0.0050838]
[1766677160459,3.389,2951.9,2951.2,0.0050838]
[1766677160657,3.389,2951.9,2950.7,3.389]
[1766677160858,3.389,2951.9,2950.6,0.00274657]
[1766677161058,3.389,2951.9,2950.7,3.389]
[1766677161650,8.474,2951.8,2951.0,0.0050838]
[1766677161854,3.389,2951.9,2950.8,3.389]
[1766677162060,0.00505446,2952.2,2950.9,0.16953]
[1766677162256,3.389,2952.1,2950.9,0.16953]
[1766677162758,3.389,2952.1,2951.2,0.0050838]
[1766677163660,0.00505446,2952.2,2951.2,3.3940838]
[1766677163958,3.389,2952.1,2951.2,3.3940838]
[1766677164862,3.389,2952.1,2951.2,0.0050838]
[1766677166953,9.667,2952.0,2951.2,0.0050838]
[1766677167258,3.0605,2951.9,2951.2,0.0050838]
[1766677167448,3.389,2951.8,2951.2,0.0050838]
[1766677167652,0.00505446,2952.2,2951.2,0.0050838]
[1766677167850,3.389,2951.9,2951.2,0.0050838]
[1766677168054,3.389,2951.9,2951.2,3.3940838]
[1766677169662,6.278,2952.1,2951.2,3.3940838]
[1766677169964,3.389,2952.0,2951.2,3.3940838]
[1766677171057,3.389,2951.9,2951.2,3.3940838]
[1766677172858,3.389,2951.9,2951.2,0.0050838]
[1766677174367,3.389,2951.9,2950.6,3.39174657]
[1766677175163,8.472,2951.8,2950.6,0.00274657]
[1766677175465,8.472,2951.8,2950.9,0.00341852]
[1766677175966,0.00505446,2952.2,2950.9,0.00341852]
[1766677176359,3.601,2952.1,2950.9,0.00341852]
[1766677177566,9.665,2952.0,2950.9,0.00341852]
[1766677177761,0.00505446,2952.2,2950.9,0.00341852]
[1766677177963,12.168,2952.1,2950.9,0.00341852]
[1766677178162,0.00505446,2952.2,2950.9,0.00341852]
[1766677178361,3.486,2952.1,2950.9,0.00341852]
[1766677180464,9.664,2952.0,2950.9,0.00341852]
[1766677183168,9.663,2951.9,2950.9,0.00341852]
[1766677183670,9.664,2951.8,2950.9,0.00341852]
[1766677183870,3.389,2951.7,2950.9,0.00341852]
[1766677184465,0.00505446,2952.2,2950.9,0.00341852]
[1766677184659,6.275,2951.7,2950.9,0.00341852]
[1766677184863,3.389,2951.6,2950.9,0.00341852]
[1766677185672,0.00505446,2952.2,2950.9,0.00341852]
[1766677185868,3.443,2952.1,2950.9,0.00341852]
[1766677191578,0.00505446,2952.2,2950.9,0.00341852]
[1766677191872,18.135,2952.1,2950.9,0.00341852]
[1766677193979,6.275,2952.0,2950.9,0.00341852]
[1766677194179,9.664,2952.0,2950.9,0.00341852]
[1766677194477,0.00505446,2952.2,2951.0,0.16953]
[1766677194673,18.137,2952.1,2951.1,0.16952]
[1766677195076,18.137,2952.1,2950.9,0.00341852]
[1766677195077,0.00505446,2952.2,2950.9,0.00341852]
[1766677195468,3.392,2952.1,2950.9,0.00341852]
[1766677195673,6.276,2952.0,2951.4,0.16951]
[1766677195880,9.665,2952.0,2951.4,0.16951]
[1766677196869,9.665,2952.0,2950.9,0.00341852]
[1766677200484,0.00505446,2952.2,2950.9,0.00341852]
[1766677200985,12.482,2952.1,2950.9,0.00341852]
[1766677201187,0.00505446,2952.2,2950.9,0.00341852]
[1766677201686,0.00505446,2952.2,2951.3,0.16951]
[1766677201881,0.00505446,2952.2,2951.5,0.1695]
[1766677202078,3.393,2952.1,2951.5,0.1695]
[1766677202277,3.389,2952.0,2951.5,0.1695]
[1766677202475,3.389,2952.0,2951.1,3.389]
[1766677202679,3.389,2952.0,2950.9,0.17295852]
[1766677202680,3.389,2952.0,2951.0,0.16953]
[1766677202881,3.389,2952.0,2951.1,0.16952]
[1766677203088,0.0050838,2951.8,2951.1,0.16952]
[1766677203487,3.1846,2951.7,2951.1,0.16952]
[1766677203788,3.1621,2951.7,2951.1,0.16952]
[1766677204478,0.0050838,2951.8,2951.1,0.16952]
[1766677204679,3.389,2951.7,2951.1,0.16952]
[1766677205986,0.0050838,2951.8,2951.2,0.16951]
[1766677206187,3.3890038,2951.8,2951.1,3.389]
[1766677206676,3.8e-06,2951.8,2951.1,3.389]
[1766677207390,3.8e-06,2951.8,2951.3,0.16951]
[1766677207688,3.8e-06,2951.8,2950.9,0.00341852]
[1766677207991,3.389,2951.7,2950.9,0.17294852]
[1766677208990,3.8e-06,2951.8,2951.0,0.16953]
[1766677209292,3.389,2951.7,2951.1,0.16952]
[1766677209685,3.8e-06,2951.8,2951.2,0.16952]
[1766677209985,3.8e-06,2951.8,2951.3,0.16951]
[1766677210493,3.389,2951.9,2951.3,0.16951]
[1766677211484,3.3940838,2951.9,2951.3,0.16951]
[1766677211984,0.0050838,2951.9,2951.3,0.16951]
[1766677212193,3.3940838,2951.9,2951.3,0.16951]
[1766677212385,0.0050838,2951.9,2951.3,0.16951]
[1766677212585,0.0050838,2951.9,2951.4,0.16951]
[1766677213185,3.8e-06,2951.9,2951.4,0.16951]
[1766677213686,42.01961734,2953.3,2951.5,0.1695]
[1766677213899,18.132,2953.0,2951.5,0.1695]
[1766677214588,0.0050838,2952.5,2951.5,0.1695]
[1766677214785,0.0050838,2952.5,2951.6,3.389]
[1766677214984,3.389,2953.0,2952.3,0.16945]
[1766677215180,0.08662966,2954.2,2952.3,0.16945]
[1766677215379,57.468,2954.1,2952.3,0.16945]
[1766677215580,40.8,2954.1,2952.3,0.16945]
[1766677215786,1.24353775,2954.6,2952.6,0.16944]
[1766677215987,0.0050838,2953.9,2953.3,0.0050838]
[1766677216285,3.389,2953.8,2953.3,0.00793297]
[1766677216489,3.389,2953.7,2953.3,0.00793297]
[1766677217582,3.389,2953.7,2952.9,3.389]
[1766677218593,3.389,2953.7,2953.0,0.0050838]
[1766677219386,3.388,2953.7,2953.0,0.0050838]
[1766677220694,0.0050838,2953.8,2953.0,0.0050838]
[1766677220899,3.388,2954.0,2953.1,0.16941]
[1766677221098,3.388,2954.0,2953.2,3.388]
[1766677221299,3.388,2954.0,2953.0,0.0050838]
[1766677221504,3.388,2954.0,2953.0,3.3930838]
[1766677221801,0.0050838,2953.8,2953.0,0.0050838]
[1766677222005,3.388,2953.7,2952.7,3.388]
[1766677222824,3.388,2953.7,2951.9,2.99747488]
[1766677223013,3.388,2953.7,2952.2,3.388]
[1766677224108,3.388,2953.7,2952.1,0.03658397]
[1766677224310,3.388,2953.7,2951.6,3.388]
[1766677224814,3.388,2953.7,2951.7,0.16949]
[1766677225015,3.388,2953.7,2952.4,0.0050838]
[1766677225324,3.388,2953.7,2952.4,0.00279815]
[1766677225820,6.274,2953.6,2952.4,0.00279815]
[1766677226017,0.0050838,2953.8,2952.4,0.00279815]
[1766677226219,3.391,2953.7,2952.4,0.00279815]
[1766677227108,3.391,2953.7,2952.8,0.00338918]
[1766677229122,5.4826774,2955.3,2952.9,6.0]
[1766677229421,0.00957783,2957.5,2952.9,6.0]
[1766677229422,3.388,2958.5,2955.2,3.388]
[1766677229623,3.388,2958.4,2956.0,0.16924]
[1766677229925,3.388,2958.3,2956.3,0.16923]
[1766677230222,0.00507484,2957.6,2957.0,0.00507484]
[1766677230432,0.00507484,2957.6,2957.1,3.387]
[1766677230618,3.387,2957.8,2957.0,0.00507484]
[1766677230818,98.3526152,2957.7,2957.1,9.553]
[1766677231021,0.00310863,2958.3,2957.2,8.469]
[1766677231220,0.00310863,2958.3,2957.3,0.16917]
[1766677231419,2.463,2959.5,2957.4,3.387]
[1766677231615,0.00507484,2958.7,2957.0,0.00507484]
[1766677231817,0.00507484,2958.7,2957.1,3.387]
[1766677232021,0.00507484,2958.7,2957.0,0.00507484]
[1766677232223,0.00507484,2958.7,2957.1,3.387]
[1766677232529,0.00898588,2958.7,2957.1,3.387]
[1766677232718,0.00898588,2958.7,2957.1,3.55618]
[1766677232919,0.00898588,2958.7,2957.1,0.16918]
[1766677233224,40.807,2960.4,2957.7,0.16914]
[1766677233425,3.386,2960.3,2957.7,0.16914]
[1766677233620,3.386,2960.3,2957.1,3.82233968]
[1766677233820,3.386,2960.3,2957.2,48.085]
[1766677234026,98.24848573,2960.3,2957.3,18.015]
[1766677234221,0.00507484,2959.1,2958.5,0.00507484]
[1766677234426,0.00507484,2959.1,2958.5,0.00865378]
[1766677234620,94.86756057,2959.1,2958.5,3.39465378]
[1766677234816,94.86756057,2959.1,2958.5,0.00865378]
[1766677235021,98.25356057,2959.1,2953.7,0.16938]
[1766677235314,3.39107484,2959.1,2957.3,3.385]
[1766677235514,94.86248573,2958.9,2957.3,6.163]
[1766677235723,3.385,2958.8,2957.4,3.385]
[1766677236122,94.86248573,2958.7,2957.8,0.00507484]
[1766677236325,0.00507484,2959.1,2957.8,3.39007484]
[1766677237725,0.00507484,2959.1,2957.8,14.62707484]
[1766677237920,0.00507484,2959.1,2957.9,9.544]
[1766677237921,3.38907484,2959.1,2957.9,9.544]
[1766677238117,98.25156057,2959.1,2957.9,3.384]
[1766677238326,98.25156057,2959.1,2957.8,0.00507484]
[1766677238530,98.25156057,2959.1,2957.9,3.384]
[1766677239325,98.25156057,2959.1,2957.8,0.00507484]
[1766677239535,98.25156057,2959.1,2957.9,3.384]
[1766677240135,98.25156057,2959.1,2957.8,3.38907484]
[1766677241129,98.25156057,2959.1,2957.4,0.00250725]
[1766677241332,6.323,2959.0,2957.4,3.38550725]
[1766677241726,40.8,2958.9,2957.4,3.38550725]
[1766677241936,3.383,2958.8,2957.4,3.38550725]
[1766677242138,3.383,2958.8,2957.8,0.00507484]
[1766677242433,3.383,2958.8,2957.4,7.25e-06]
[1766677243531,3.383,2958.8,2956.3,13.15757453]
[1766677243532,94.86247848,2958.2,2956.3,13.15757453]
[1766677243734,9.732,2958.1,2956.4,17.998]
[1766677244034,9.732,2958.0,2956.5,3.383]
[1766677244224,3.383,2957.9,2956.6,7.229]
[1766677244425,0.00507484,2957.5,2956.6,3.8499603]
[1766677244738,3.383,2957.4,2956.7,2.2161]
[1766677245037,3.383,2957.4,2956.3,3.846]
[1766677245526,98.24547848,2957.4,2956.3,7.229]
[1766677245727,98.24547848,2957.4,2956.3,3.846]
[1766677245926,98.24547848,2957.4,2956.3,3.84907497]
[1766677246121,98.24547848,2957.4,2956.3,1.67907497]
[1766677246326,98.24547848,2957.4,2956.1,3.383]
[1766677246526,94.86247848,2957.3,2956.1,3.383]
[1766677247135,3.383,2957.4,2956.1,3.383]
[1766677247338,3.383,2957.4,2956.1,3.38663029]
[1766677247932,6.35607484,2957.5,2956.1,3.38663029]
[1766677247933,0.00507484,2957.5,2956.1,3.38663029]
[1766677248937,0.00507484,2957.5,2956.2,14.615]
[1766677249237,0.00507484,2957.5,2956.3,10.203]
[1766677249433,0.00507484,2957.5,2956.4,0.16922]
[1766677249634,94.86247848,2957.1,2956.4,0.16922]
[1766677249845,0.00507484,2957.5,2956.4,0.16922]
[1766677249846,0.00507484,2957.5,2956.5,3.383]
[1766677250042,0.00507484,2957.5,2956.5,3.55221]
[1766677250235,94.86755332,2957.5,2956.5,3.55221]
[1766677250536,0.00507484,2957.5,2956.5,3.55221]
[1766677251132,94.86247848,2957.2,2956.6,3.383]
[1766677251331,0.00507484,2957.5,2956.6,9.539]
[1766677251530,0.00507484,2957.5,2956.5,0.16921]
[1766677251733,0.00507484,2957.5,2956.6,3.383]
[1766677252141,94.86755332,2957.5,2956.6,3.383]
[1766677252437,0.00507484,2957.5,2956.6,3.55221]
[1766677252634,0.00425167,2957.9,2956.6,3.383]
[1766677252835,0.00425167,2957.9,2956.9,0.16919]
[1766677253032,92.87455015,2957.9,2956.9,3.383]
[1766677253638,0.16902,2959.9,2957.1,0.00507483]
[1766677253839,4.91,2959.8,2957.7,0.16914]
[1766677254045,78.66555015,2959.6,2957.8,9.539]
[1766677254534,0.00507484,2959.0,2957.8,9.539]
[1766677254843,0.00507484,2959.0,2957.9,17.997]
[1766677255141,0.00507484,2959.0,2958.0,3.383]
[1766677255343,0.00507484,2959.0,2957.7,6.32514]
[1766677255529,0.00507484,2959.0,2957.8,3.383]
[1766677256834,0.00507484,2959.0,2957.7,0.16914]
[1766677257039,0.00507484,2959.0,2957.7,3.55114]
[1766677258737,0.00507484,2959.0,2957.7,0.16914]
[1766677258938,0.00507484,2959.0,2957.8,3.382]
[1766677260942,0.00507484,2959.0,2957.7,0.16914]
[1766677261145,0.00507484,2959.0,2957.6,3.382]
[1766677261444,0.00507484,2959.0,2957.2,6.154]
[1766677261741,0.00507484,2959.0,2957.3,3.382]
[1766677262044,9.775,2958.9,2957.4,3.382]
[1766677262646,3.38707484,2959.0,2957.4,3.382]
[1766677262842,0.00507484,2959.0,2957.4,3.382]
[1766677263147,3.382,2958.9,2957.4,3.382]
[1766677263348,3.382,2958.9,2957.9,0.16913]
[1766677263641,3.382,2958.9,2958.0,3.382]
[1766677263841,78.66555015,2958.7,2958.0,3.382]
[1766677265742,3.382,2958.9,2958.0,3.382]
[1766677267149,78.66555015,2958.8,2957.9,0.16913]
[1766677267350,78.66555015,2958.8,2958.0,9.534]
[1766677267946,78.66555015,2958.8,2958.0,3.846]
[1766677268138,78.66555015,2958.8,2958.1,3.382]
[1766677268345,82.04755015,2958.8,2958.1,3.382]
[1766677268939,82.04755015,2958.8,2957.5,0.16916]
[1766677268940,76.06535015,2958.8,2957.8,3.846]
[1766677269147,0.00507484,2959.0,2957.9,7.191]
[1766677269350,0.00371352,2959.6,2958.6,0.16909]
[1766677269651,66.06420907,2959.6,2958.7,7.94609]
[1766677270254,0.00507484,2959.4,2958.9,0.00507484]
[1766677270648,0.00507484,2959.4,2957.5,33.818]
[1766677270856,69.44149555,2959.3,2957.9,8.454]
[1766677271049,69.44149555,2959.3,2958.1,0.16912]
[1766677271556,69.44149555,2959.3,2958.2,3.381]
[1766677271748,69.44149555,2959.3,2958.5,0.00507484]
[1766677271949,69.44149555,2959.3,2958.5,3.38607484]
[1766677272344,69.44149555,2959.3,2958.5,0.00507484]
[1766677272551,69.44149555,2959.3,2958.5,3.38607484]
[1766677272756,69.44149555,2959.3,2958.2,0.00270876]
[1766677272757,65.88359195,2959.0,2958.2,3.381]
[1766677272951,69.26459195,2959.0,2957.9,6.154]
[1766677273257,69.26459195,2959.0,2958.0,3.381]
[1766677273650,69.26459195,2959.0,2958.2,0.00507483]
[1766677273849,69.26459195,2959.0,2958.3,3.381]
[1766677274463,69.26459195,2959.0,2958.3,1.2282]
[1766677274752,69.26459195,2959.0,2958.0,0.00263276]
[1766677274960,69.26459195,2959.0,2958.0,3.38363276]
[1766677275156,69.26459195,2959.0,2957.2,4.01517]
[1766677275352,69.26459195,2959.0,2957.5,6.153]
[1766677275553,69.26459195,2959.0,2957.6,3.381]
[1766677275747,69.26459195,2959.0,2957.7,3.381]
[1766677275962,40.8,2958.9,2957.6,3.381]
[1766677276165,69.26459195,2959.0,2957.6,3.38372636]
[1766677278957,3.381,2959.3,2958.3,0.16911]
[1766677279158,0.00507484,2959.4,2958.5,0.1691]
[1766677279355,0.00507484,2959.4,2958.6,0.16909]
[1766677279556,3.53e-06,2959.6,2958.9,0.16908]
[1766677279752,3.53e-06,2959.6,2958.4,6.153]
[1766677279753,25.5209055,2959.5,2959.3,0.16905]
[1766677279958,9.922,2960.9,2959.4,3.381]
[1766677280255,25.5209055,2960.6,2959.4,3.55004]
[1766677280459,25.5209055,2960.6,2959.4,3.381]
[1766677280661,9.923,2961.1,2959.7,0.17410484]
[1766677280850,24.4783055,2960.5,2959.8,9.534]
[1766677281256,24.4783055,2960.1,2959.7,0.17837372]
[1766677281461,24.4783055,2960.1,2959.8,5.201]
[1766677281662,3.38465857,2961.1,2959.8,5.201]
[1766677281863,0.00507484,2960.2,2959.8,5.201]
[1766677282065,0.00507484,2960.2,2959.9,3.381]
[1766677282359,0.00507484,2960.2,2959.7,6.16134372]
[1766677282559,0.00507484,2960.2,2959.7,0.00934372]
[1766677282858,3.381,2960.1,2958.9,3.381]
[1766677283058,21.3112055,2959.3,2958.8,3.381]
[1766677283259,21.3112055,2959.3,2958.4,0.1691]
[1766677283455,21.3112055,2959.3,2958.5,5.528]
[1766677283655,3.381,2959.6,2958.5,5.528]
[1766677283857,21.3112055,2959.3,2958.6,0.00507484]
[1766677284058,21.3112055,2959.3,2958.7,9.533]
[1766677284566,3.38,2959.2,2957.7,2.37403903]
[1766677284860,3.38,2959.2,2957.8,0.16914]
[1766677285065,3.38,2959.2,2957.9,13.968]
[1766677285358,3.38,2959.2,2957.8,0.16914]
[1766677285564,0.00507484,2958.8,2957.9,5.515]
[1766677285761,0.00881897,2958.8,2957.8,0.17315362]
[1766677285964,0.00881897,2958.8,2957.9,6.023]
[1766677286465,0.00881897,2958.8,2958.0,9.532]
[1766677286961,0.00881897,2958.8,2957.8,0.00401362]
[1766677287159,6.55381897,2958.8,2957.8,3.38401362]
[1766677288354,0.00881897,2958.8,2957.8,3.38401362]
[1766677289065,0.00881897,2958.8,2957.9,2.37403903]
[1766677289257,0.00881897,2958.8,2958.0,0.16913]
[1766677289457,0.00881897,2958.8,2958.1,3.381]
[1766677289659,0.00881897,2958.8,2958.2,3.381]
[1766677290260,0.00881897,2958.8,2958.0,0.16913]
[1766677290470,0.00881897,2958.8,2958.1,9.535]
[1766677291366,1.897e-05,2958.8,2958.2,6.155]
[1766677291668,1.897e-05,2958.8,2958.3,3.381]
[1766677292361,0.00509381,2958.8,2958.3,3.38607484]
[1766677292968,0.00509381,2958.8,2958.3,0.00507484]
[1766677293269,0.00507484,2958.8,2958.4,3.381]
[1766677293566,3.381,2959.2,2958.4,3.381]
[1766677293964,3.381,2959.5,2958.4,3.381]
[1766677294164,3.381,2959.5,2958.3,0.17418484]
[1766677294462,0.00507484,2959.2,2958.4,6.154]
[1766677294666,3.38607484,2959.2,2958.3,0.00507484]
[1766677294868,3.38607484,2959.2,2958.3,3.38607484]
[1766677295562,3.38607484,2959.2,2958.2,3.846]
[1766677295767,6.542,2959.1,2958.0,3.381]
[1766677296073,6.542,2959.1,2957.8,0.17315362]
[1766677296275,6.542,2959.1,2957.8,0.00401362]
[1766677296570,8.452,2959.0,2957.6,3.381]
[1766677296770,8.452,2959.0,2958.0,0.00507484]
[1766677296771,3.381,2958.9,2958.0,0.00507484]
[1766677297164,17.75818707,2958.1,2957.3,3.381]
[1766677297471,21.13918707,2958.1,2957.3,3.38437498]
[1766677297666,21.13918707,2958.1,2957.3,0.00337498]
[1766677298468,21.13918707,2958.1,2956.8,3.846]
[1766677298770,21.13918707,2958.1,2956.9,3.381]
[1766677298973,0.00507484,2957.8,2956.9,3.381]
[1766677299272,3.381,2957.7,2956.9,3.381]
[1766677299474,3.381,2957.7,2956.9,3.38371833]
[1766677300260,3.381,2957.7,2956.9,0.00271833]
[1766677300466,3.381,2957.7,2956.9,3.38371833]
[1766677301178,3.381,2957.7,2956.9,0.00271833]
[1766677301469,3.381,2957.7,2957.0,3.381]
[1766677302668,3.381,2957.7,2956.9,3.38371833]
[1766677303078,3.381,2957.7,2956.9,0.00271833]
[1766677303468,3.381,2957.7,2956.9,3.84871833]
[1766677304162,3.381,2957.7,2956.9,7.22971833]
[1766677305174,3.381,2957.7,2956.9,3.84871833]
[1766677305475,3.381,2957.7,2956.9,7.22971833]
[1766677308570,3.381,2957.7,2956.9,7.39890833]
[1766677308876,0.00507484,2957.8,2957.0,3.847]
[1766677309465,0.00507484,2957.8,2957.1,0.465]
[1766677310173,0.00507484,2957.8,2957.2,3.382]
[1766677311377,0.00507484,2957.8,2957.1,0.465]
[1766677311575,0.00507484,2957.8,2957.2,3.382]
[1766677312579,0.00507484,2957.8,2957.1,0.465]
[1766677312779,0.00507484,2957.8,2957.1,3.847]
[1766677313375,0.00507484,2957.8,2957.1,0.465]
[1766677314578,17.75818707,2957.2,2957.1,0.465]
[1766677314882,17.76169161,2957.2,2956.8,3.382]
[1766677315084,17.76169161,2957.2,2956.8,2.91056872]
[1766677315680,17.76169161,2957.2,2956.8,2.91482509]
[1766677316373,17.76169161,2957.2,2957.0,0.16918]
[1766677316585,17.76169161,2957.2,2956.8,2.91482509]
[1766677317387,17.76169161,2957.2,2957.0,0.16918]
[1766677317588,17.76169161,2957.2,2956.8,2.91482509]
[1766677318182,17.76169161,2957.2,2956.9,3.846]
[1766677319492,6.22648328,2957.2,2956.9,3.846]
[1766677319684,6.12708328,2957.2,2956.9,3.846]
[1766677320089,6.12708328,2957.2,2956.9,7.228]
[1766677320386,6.12708328,2957.2,2956.9,3.846]
[1766677320585,6.12708328,2957.2,2956.9,7.228]
[1766677320779,1.27896328,2957.2,2956.9,3.382]
[1766677321087,0.00507484,2957.8,2956.9,3.382]
[1766677321088,0.00507484,2957.8,2957.0,0.16918]
[1766677321282,0.00507484,2957.8,2957.1,10.007]
[1766677321586,0.00507484,2957.8,2957.2,3.382]
[1766677321887,4.84e-06,2957.8,2957.5,0.16916]
[1766677322088,5.17e-06,2957.8,2957.6,9.543]
[1766677322588,5.561,2958.7,2957.6,11.91703903]
[1766677322987,0.00507484,2958.4,2957.9,0.00507484]
[1766677323687,0.00900141,2958.4,2957.9,0.00507484]
[1766677324884,3.382,2958.3,2957.6,3.382]
[1766677325284,3.382,2958.3,2957.5,2.37403903]
[1766677325484,3.382,2958.3,2957.5,5.75603903]
[1766677325981,3.382,2958.3,2957.5,2.37403903]
[1766677326184,3.382,2958.3,2957.5,5.75603903]
[1766677327983,3.382,2958.3,2957.5,2.37403903]
[1766677328382,6.564,2958.2,2957.5,2.37403903]
[1766677328583,6.564,2958.2,962.44,1.16652545]
[1766677328584,6.564,2958.2,2955.3,11.24353543]
[1766677328780,1.23399075,2957.5,2955.8,3.382]
[1766677328984,4.526,2957.4,2956.2,0.16923]
[1766677329186,0.00507484,2957.1,2956.2,0.16923]
[1766677329688,0.00507484,2957.1,2956.5,3.23401155]
[1766677329888,0.00507484,2957.1,2956.2,0.17312001]
[1766677330092,0.00507484,2957.1,2956.3,6.61601155]
[1766677330584,0.00507484,2957.1,2956.3,3.23401155]
[1766677330786,0.00507484,2957.1,2956.2,0.00389001]
[1766677330983,0.00507484,2957.1,2956.2,6.61990156]
[1766677332088,0.00507484,2957.1,2956.2,3.23790156]
[1766677332294,0.00507484,2957.1,2955.5,3.382]
[1766677333187,3.38707484,2957.1,2955.8,0.16925]
[1766677333386,3.38707484,2957.1,2955.9,9.543]
[1766677333989,3.38707484,2957.1,2955.7,3.382]
[1766677334193,8.456,2957.0,2955.5,0.00238869]
[1766677334393,6.562,2956.9,2955.5,0.00238869]
[1766677334594,3.382,2956.8,2955.5,0.00238869]
[1766677334995,3.382,2956.8,2955.5,1.97106076]
[1766677336995,0.00507484,2957.1,2955.6,3.383]
[1766677337298,6.562,2956.8,2955.6,3.383]
[1766677337500,6.562,2956.8,2955.7,1.96867207]
[1766677338103,3.383,2956.7,2955.7,1.96867207]
[1766677339709,3.383,2956.7,2956.0,1.96867207]
[1766677340905,3.383,2956.7,2955.5,0.00238869]
[1766677341108,3.383,2956.7,2955.8,1.96867207]
[1766677342711,6.562,2956.8,2955.8,1.96867207]
[1766677342712,3.383,2956.8,2955.9,6.161]
[1766677342913,6.56,2957.0,2956.0,3.383]
[1766677343813,6.56,2957.0,2956.1,3.383]
[1766677344613,6.56,2957.0,2956.4,1.96867207]
[1766677345207,3.38807484,2957.1,2956.4,5.35167207]
[1766677345402,3.38807484,2957.1,2956.6,1.96867207]
[1766677346514,3.38807484,2957.1,2955.9,0.16925]
[1766677346713,3.38807484,2957.1,2956.0,3.383]
[1766677346908,3.38807484,2957.1,2955.9,3.383]
[1766677347607,3.38807484,2957.1,2955.5,0.00238869]
[1766677347802,3.38807484,2957.1,2955.5,0.17165869]
[1766677348115,3.38807484,2957.1,2955.6,3.383]
[1766677348317,3.38807484,2957.1,2955.5,0.00238869]
[1766677348610,0.16919,2957.0,2955.5,0.00238869]
[1766677348814,6.72819,2956.9,2955.1,0.11792065]
[1766677349015,44.183,2956.8,2955.1,0.11792065]
[1766677349215,8.458,2956.7,2955.1,0.11792065]
[1766677349416,8.458,2956.7,2954.2,0.16934]
[1766677349611,0.16922,2956.4,2954.5,3.383]
[1766677349811,9.943,2956.3,2954.5,3.38726938]
[1766677350010,9.94718097,2956.3,2954.5,3.38726938]
[1766677350214,9.94718097,2956.3,2954.5,0.00426938]
[1766677350415,9.94718097,2956.3,2954.5,3.38726938]
[1766677351018,9.94718097,2956.3,2954.5,3.55659938]
[1766677352218,9.94718097,2956.3,2954.8,0.16931]
[1766677352420,9.94718097,2956.3,2954.9,3.383]
[1766677352915,9.94718097,2956.3,2955.0,3.384]
[1766677355017,9.94718097,2956.3,2954.9,0.16931]
[1766677355921,9.94718097,2956.3,2954.5,0.00426938]
[1766677356122,9.94718097,2956.3,2954.6,3.384]
[1766677356717,9.94718097,2956.3,2954.5,0.00426938]
[1766677356922,9.94718097,2956.3,2954.6,3.384]
[1766677357824,9.94718097,2956.3,2954.5,0.00426938]
[1766677358027,9.94718097,2956.3,2954.6,3.384]
[1766677358523,9.94718097,2956.3,2954.5,0.00426938]
[1766677358930,9.94718097,2956.3,2954.6,3.384]
[1766677361829,9.94718097,2956.3,2954.7,3.384]
[1766677362421,9.94718097,2956.3,2954.6,3.384]
[1766677362627,0.16923,2956.2,2954.6,3.384]
[1766677363129,0.16923,2956.2,2954.5,0.00426938]
[1766677367922,13.33318097,2956.3,2954.5,0.00426938]
[1766677368127,13.33318097,2956.3,2953.3,2.98083456]
[1766677368128,0.16926,2955.8,2954.0,3.385]
[1766677368323,0.00507484,2955.2,2954.0,3.385]
[1766677368523,3.52,2955.1,2954.0,3.385]
[1766677369031,3.52,2955.1,2954.0,3.38820992]
[1766677372038,3.52,2955.1,2954.1,3.846]
[1766677372232,3.52,2955.1,2954.1,7.231]
[1766677372431,3.385,2955.0,2954.1,7.231]
[1766677373934,0.00507484,2955.2,2954.1,7.231]
[1766677374138,3.385,2955.0,2954.1,7.231]
[1766677376039,0.00507484,2955.2,2954.1,13.39]
[1766677376243,3.39007484,2955.2,2954.1,13.39]
[1766677376931,3.39007484,2955.2,2954.2,3.846]
[1766677377132,3.39007484,2955.2,2954.3,3.846]
[1766677377339,3.39007484,2955.2,2954.4,3.385]
[1766677377732,2.19707484,2955.2,2954.4,3.385]
[1766677378833,0.00507484,2955.1,2954.5,0.00507484]
[1766677379341,0.00507484,2955.1,2954.6,3.385]
[1766677380134,1.16807484,2955.2,2954.6,3.385]
[1766677380436,3.385,2955.3,2954.6,3.385]
[1766677381242,0.00507484,2955.2,2954.6,3.385]
[1766677382834,0.00507484,2955.2,2954.5,0.00507484]
[1766677383135,0.00507484,2955.2,2954.6,3.385]
[1766677383336,0.00507484,2955.2,2954.5,0.00507484]